Cogmind - Beta 12 @@@ ROGUE MODE // 2023.05.29 @ 18:31:10 Player: Mr Goldstein Result: Destroyed by C-35 Carver with Carbide Saw Performance ------------- Evolutions (5) 2500 Regions Visited (17) 3400 Robots Destroyed (24) 120 Value Destroyed (980) 980 Prototype IDs (12) 240 Alien Tech Used (0) 0 Bonus (2226) 2226 TOTAL SCORE: 9466 Bonus ------- Pacifist 634 High Alert Combat Kills 129 Follower Combat Kills 834 Entered DSFs 500 Network Hubs Disabled 200 Met Data Miner 300 Friendly Fire -371 Cogmind --------- Core Integrity 0/1000 Matter 238/300 Energy 99/100 System Corruption 2% Temperature Cool (0) Movement Core (50) Location -5/Hub_04(d) Parts ------- > --- POWER (1) -------- (None) > --- PROPULSION (7) --- (None) > --- UTILITY (7) ------ Makeshift Terrain Scan Processor Improved Melee Analysis Suite Improved Hacking Suite Authchip [R/Combat] > --- WEAPON (2) ------- (None) > --- INVENTORY (5) ---- Neutrino Core Layered Light Armor Plating Phasing Sabre Peak State ------------ > --- POWER ------------ Enhanced Nuclear Core > --- PROPULSION ------- VTOL Module VTOL Module Surge Thruster Surge Thruster Surge Thruster > --- UTILITY ---------- Improved Signal Interpreter Makeshift Terrain Scan Processor Improved Melee Analysis Suite Reaction Control System Improved Utility Shielding Improved Remote Force Field Authchip [R/Combat] > --- WEAPON ----------- Phasing Sabre > --- INVENTORY -------- Advanced Heat Sink Compact Battery Heavy Missile Launcher [Rating: 54] Favorites ----------- Power Enhanced Nuclear Core Power Core Enhanced Nuclear Core Propulsion VTOL Module Hover Unit Gravmag System Flight Unit VTOL Module Utility Improved Signal Interpreter Device Reaction Control System Processor Improved Signal Interpreter Hackware Authchip [R/Combat] Protection Improved Utility Shielding Weapon Phasing Sabre Launcher Rocket Launcher Slashing Weapon Phasing Sabre Piercing Weapon Spear Build | -11 -10 -10 -10 -9 -8 -7 -7 -7 -7 -6 -6 -6 -5 -5 -5 -5 -5 ------- Run | Jun Mat Min Exi Min Mat Fac Low Low Dat Pro Fac DSF Fac Ext Cet Arc Hub Slots Evolved 10 | . . . . . 4 2 . . . . 2 . 2 . . . . Power . | . . . . . . . . . . . . . . . . . . Propulsion 5 | . . . . . 2 1 . . . . 1 . 1 . . . . Utility 5 | . . . . . 2 1 . . . . 1 . 1 . . . . Weapon . | . . . . . . . . . . . . . . . . . . Parts Attached 49 | . . . . . . 4 . 5 . 4 . 2 3 21 3 4 3 Power 2 | . . . . . . . . 1 . . . . 1 . . . . Engine . | . . . . . . . . . . . . . . . . . . Core 2 | . . . . . . . . 1 . . . . 1 . . . . Reactor . | . . . . . . . . . . . . . . . . . . Propulsion 11 | . . . . . . 1 . 2 . . . 2 1 3 . 2 . Treads . | . . . . . . . . . . . . . . . . . . Leg . | . . . . . . . . . . . . . . . . . . Wheel . | . . . . . . . . . . . . . . . . . . Hover 2 | . . . . . . . . . . . . . . . . 2 . Flight 9 | . . . . . . 1 . 2 . . . 2 1 3 . . . Utility 17 | . . . . . . 3 . . . 3 . . . 10 . . 1 Device 6 | . . . . . . 2 . . . . . . . 4 . . . Storage . | . . . . . . . . . . . . . . . . . . Processor 4 | . . . . . . 1 . . . 1 . . . 2 . . . Hackware 3 | . . . . . . . . . . 1 . . . 1 . . 1 Protection 4 | . . . . . . . . . . 1 . . . 3 . . . Artifact . | . . . . . . . . . . . . . . . . . . Weapon 19 | . . . . . . . . 2 . 1 . . 1 8 3 2 2 Energy Gun . | . . . . . . . . . . . . . . . . . . Energy Cannon . | . . . . . . . . . . . . . . . . . . Ballistic Gun . | . . . . . . . . . . . . . . . . . . Ballistic Cannon . | . . . . . . . . . . . . . . . . . . Launcher 10 | . . . . . . . . 1 . 1 . . . 6 1 . 1 Special Weapon . | . . . . . . . . . . . . . . . . . . Impact Weapon . | . . . . . . . . . . . . . . . . . . Slashing Weapon 8 | . . . . . . . . 1 . . . . . 2 2 2 1 Piercing Weapon 1 | . . . . . . . . . . . . . 1 . . . . Special Melee Weapon . | . . . . . . . . . . . . . . . . . . Unidentified Prototypes 1 | . . . . . . . . . . . . . 1 . . . . Parts Lost 17 | . . . . . . 1 . 1 . 2 . . . 6 2 4 1 Power 1 | . . . . . . . . . . 1 . . . . . . . Propulsion 11 | . . . . . . . . . . 1 . . . 5 2 3 . Utility 4 | . . . . . . 1 . 1 . . . . . 1 . 1 . Weapon 1 | . . . . . . . . . . . . . . . . . 1 Highest Loss Streak 4 | . . . . . . 1 . 1 . 1 . . . 4 2 4 1 To Critical Strikes . | . . . . . . . . . . . . . . . . . . Average Slot Usage (%) 47 | . . . . . . 12 23 27 38 42 . 46 59 64 51 54 29 Core 1 | . . . . . . . . . 7 1 . . 1 3 . . . Flight 15 | . . . . . . . 7 9 23 20 . 19 28 22 9 4 . Device 2 | . . . . . . 4 7 3 . . . . . 3 . . . Processor 12 | . . . . . . 6 7 7 7 10 . 13 11 16 17 17 17 Hackware 5 | . . . . . . . . . . 4 . 6 5 5 11 10 11 Protection 3 | . . . . . . . . . . 4 . 6 5 5 7 4 . Slashing Weapon 2 | . . . . . . . . 3 . . . . . 3 2 4 . Naked Turns 268 | . 34 27 64 67 70 6 . . . . . . . . . . . Heaviest Build 15 | . . . . . . 1 1 9 5 9 2 2 12 15 12 8 4 Greatest Support 18 | 3 3 3 3 3 3 4 4 12 12 12 8 14 17 17 12 18 3 Greatest Overweight (x) 1 | . . . . . . . . . . . . . . 1 . . 1 Average Overweight (x) . | . . . . . . . . . . . . . . . . . . Largest Inventory Capacity 5 | 5 5 5 5 5 5 5 5 5 5 5 5 5 5 5 5 5 5 Average Capacity 5 | 5 5 5 5 5 5 5 5 5 5 5 5 5 5 5 5 5 5 Most Carried 5 | . . . . 1 3 5 4 4 3 4 4 5 5 5 5 5 5 Average Carried 3 | . . . . . 2 4 4 3 3 3 4 4 3 4 4 4 3 Final Capacity 5 | 5 5 5 5 5 5 5 5 5 5 5 5 5 5 5 5 5 5 Final Carried 5 | . . . . 1 3 4 4 3 3 4 4 5 4 5 5 5 3 Class Distribution -------------------- 28% | Commander-Sprinter 26% | Mutant 16% | Scavenger-Mutant 12% | Scavenger-Sprinter 8% | Sprinter 7% | Commander-Mutant Dominant Class ---------------- Mutant | -10/Materials Mutant | -10/Mines Mutant | -10/Exiles Mutant | -9/Mines Mutant | -8/Materials Mutant | -7/Factory Mutant | -7/Lower Caves Mutant | -7/Lower Caves Sprinter | -7/Data Miner Sprinter | -6/Proximity Caves Sprinter | -6/Factory Sprinter | -6/DSF Scavenger-Sprinter | -5/Factory Commander-Sprinter | -5/Extension Commander-Sprinter | -5/Cetus Scavenger-Mutant | -5/Archives Mutant | -5/Hub_04(d) Resources | -11 -10 -10 -10 -9 -8 -7 -7 -7 -7 -6 -6 -6 -5 -5 -5 -5 -5 ----------- Run | Jun Mat Min Exi Min Mat Fac Low Low Dat Pro Fac DSF Fac Ext Cet Arc Hub Matter Collected 717 | 139 . . . 22 . . 3 36 . 96 . . 86 304 . 31 . Remotely . | . . . . . . . . . . . . . . . . . . Salvage Created 1146 | . . . . . . . . 13 . 26 . . 224 825 . 31 27 Parts 61 | . . . . . . . . 1 . 2 . . 7 47 . 3 1 Haulers Intercepted 3 | . . . . . . . . . . . . . 2 1 . . . Recyclers Shooed . | . . . . . . . . . . . . . . . . . . Parts Field Recycled . | . . . . . . . . . . . . . . . . . . Retrieved Matter . | . . . . . . . . . . . . . . . . . . Parts Self-Destructed 6 | . . . . . . . . 3 . 3 . . . . . . . Prevented 4 | . . . . . . . . 3 . 1 . . . . . . . Kills | -11 -10 -10 -10 -9 -8 -7 -7 -7 -7 -6 -6 -6 -5 -5 -5 -5 -5 ------- Run | Jun Mat Min Exi Min Mat Fac Low Low Dat Pro Fac DSF Fac Ext Cet Arc Hub Combat Hostiles Destroyed 15 | . . . . . . . . 1 . 1 . . . 13 . . . Melee 8 | . . . . . . . . . . . . . . 8 . . . AOE 7 | . . . . . . . . 1 . 1 . . . 5 . . . Classes Destroyed 10 | . . . . . . . . 1 . 1 . . 2 6 . . . Worker 1 | . . . . . . . . . . . . . 1 . . . . Hauler 3 | . . . . . . . . . . . . . 2 1 . . . Operator 2 | . . . . . . . . . . . . . . 1 . 1 . Watcher 3 | . . . . . . . . . . . . . . 2 . . 1 Swarmer 3 | . . . . . . . . 1 . . . . . 2 . . . Grunt 6 | . . . . . . . . . . 1 . . . 5 . . . Duelist 1 | . . . . . . . . . . . . . . 1 . . . Protector 1 | . . . . . . . . . . . . . . 1 . . . Sentry 3 | . . . . . . . . . . . . . . 3 . . . Hunter 1 | . . . . . . . . . . . . . . 1 . . . Best Kill Streak 3 | . . . . . . . . 1 . 1 . . 1 3 . 1 1 Combat Bots Only 3 | . . . . . . . . 1 . 1 . . . 3 . . . Max Kills in Single Turn 2 | . . . . . . . . 1 . 1 . . 1 2 . 1 1 Gunslinging . | . . . . . . . . . . . . . . . . . . Exploded 2 | . . . . . . . . 1 . 1 . . . 2 . . . Melee 1 | . . . . . . . . . . . . . . 1 . . . Uniques/NPCs Destroyed . | . . . . . . . . . . . . . . . . . . Combat | -11 -10 -10 -10 -9 -8 -7 -7 -7 -7 -6 -6 -6 -5 -5 -5 -5 -5 -------- Run | Jun Mat Min Exi Min Mat Fac Low Low Dat Pro Fac DSF Fac Ext Cet Arc Hub Damage Taken 2911 | . . 95 . . 267 202 28 20 . 391 . 14 104 749 279 269 493 Core 1802 | . . 95 . . 267 168 28 . . 239 . . 61 250 181 113 400 Absorbed by Shields 125 | . . . . . . . . . . . . . . 112 13 . . Redirected to Shielding 57 | . . . . . . . . . . . . . . 57 . . . Core Remaining (%) 70 | 100 . . . 62 51 . . . . 37 . 100 . . . . . Volleys Fired 15 | . . . . . . . . 1 . 4 . . . 8 . . 2 Largest 1 | . . . . . . . . 1 . 1 . . . 1 . . 1 Hottest 39 | . . . . . . . . 33 . 33 . . . 39 . . 39 Shots Fired 15 | . . . . . . . . 1 . 4 . . . 8 . . 2 Gun . | . . . . . . . . . . . . . . . . . . Cannon . | . . . . . . . . . . . . . . . . . . Launcher 15 | . . . . . . . . 1 . 4 . . . 8 . . 2 Special . | . . . . . . . . . . . . . . . . . . Kinetic . | . . . . . . . . . . . . . . . . . . Thermal . | . . . . . . . . . . . . . . . . . . Explosive 15 | . . . . . . . . 1 . 4 . . . 8 . . 2 Electromagnetic . | . . . . . . . . . . . . . . . . . . Robot Hit Streak 1 | . . . . . . . . . . 1 . . . . . . . Robot Miss Streak 2 | . . . . . . . . . . 2 . . . . . . . Penetration Max . | . . . . . . . . . . . . . . . . . . Secondary Targets . | . . . . . . . . . . . . . . . . . . Shots Hit Robots 52 | . . . . . . . . . . 1 . . 12 36 . 2 1 Core Hits 58 | . . . . . . . . 4 . 8 . . 4 41 . 1 . Critical Kills . | . . . . . . . . . . . . . . . . . . Critical Parts Destroyed . | . . . . . . . . . . . . . . . . . . Critical Strikes 8 | . . . . . . . . . . . . . 2 6 . . . Sever 6 | . . . . . . . . . . . . . . 6 . . . Impale 2 | . . . . . . . . . . . . . 2 . . . . Melee Attacks 74 | . . . . . . . . 3 . . . . 17 49 1 2 2 Impact . | . . . . . . . . . . . . . . . . . . Slashing 57 | . . . . . . . . 3 . . . . . 49 1 2 2 Piercing 17 | . . . . . . . . . . . . . 17 . . . . Sneak Attacks 9 | . . . . . . . . . . . . . 3 4 . 2 . Combat Hostiles 1 | . . . . . . . . . . . . . . 1 . . . Follow-up Attacks . | . . . . . . . . . . . . . . . . . . Damage Inflicted 4663 | . . 18 . . 33 . . 103 . 460 . . 577 2961 . 209 302 Guns . | . . . . . . . . . . . . . . . . . . Cannons . | . . . . . . . . . . . . . . . . . . Explosions 1901 | . . . . . . . . 103 . 460 . . . 1079 . . 259 Melee 2711 | . . . . . . . . . . . . . 577 1882 . 209 43 Ramming 51 | . . 18 . . 33 . . . . . . . . . . . . Kinetic . | . . . . . . . . . . . . . . . . . . Thermal . | . . . . . . . . . . . . . . . . . . Explosive 1642 | . . . . . . . . 103 . 460 . . . 1079 . . . Electromagnetic 259 | . . . . . . . . . . . . . . . . . 259 Impact . | . . . . . . . . . . . . . . . . . . Slashing 2134 | . . . . . . . . . . . . . . 1882 . 209 43 Piercing 577 | . . . . . . . . . . . . . 577 . . . . Highest Corruption 2 | . . . . . 1 . . . . . . . . . . . 2 Average Corruption 1 | . . . . . 1 . . . . . . . . . . . 2 Corruption Purged . | . . . . . . . . . . . . . . . . . . Corruption Blocked . | . . . . . . . . . . . . . . . . . . Overload Shots . | . . . . . . . . . . . . . . . . . . Overflow Damage 231 | . . . . . . . . . . 5 . . 16 127 . 27 56 Projectiles . | . . . . . . . . . . . . . . . . . . Explosions 41 | . . . . . . . . . . 5 . . . 3 . . 33 Melee 190 | . . . . . . . . . . . . . 16 124 . 27 23 Knockbacks 1 | . . 1 . . . . . . . . . . . . . . . Impact 1 | . . 1 . . . . . . . . . . . . . . . Kinetic . | . . . . . . . . . . . . . . . . . . Secondary . | . . . . . . . . . . . . . . . . . . Self-Inflicted Damage 176 | . . 8 . . 15 . . . . 53 . . . . . . 100 Shots 3 | . . . . . . . . . . 2 . . . . . . 1 Rammed 9 | . . 4 . . 5 . . . . . . . . . . . . Targets Rammed 9 | . . 4 . . 5 . . . . . . . . . . . . Kicked . | . . . . . . . . . . . . . . . . . . Crushed . | . . . . . . . . . . . . . . . . . . Highest Temperature 15 | . . . . . . . . . . 15 . . 2 7 . . . Average Temperature 6 | . . . . . . . . . . 8 . . 2 4 . . . Received Heat Transfer 758 | . . 24 . . 153 54 18 . . 111 . . 45 218 99 36 . Siege Activations . | . . . . . . . . . . . . . . . . . . Robots Corrupted . | . . . . . . . . . . . . . . . . . . Combat Hostiles . | . . . . . . . . . . . . . . . . . . Parts Fried 2 | . . . . . . . . . . . . . . . . . 2 Impact Corruptions . | . . . . . . . . . . . . . . . . . . Robots Melted . | . . . . . . . . . . . . . . . . . . Combat Hostiles . | . . . . . . . . . . . . . . . . . . Parts Melted . | . . . . . . . . . . . . . . . . . . Heat Transferred . | . . . . . . . . . . . . . . . . . . Parts Sabotaged . | . . . . . . . . . . . . . . . . . . Parts Stolen . | . . . . . . . . . . . . . . . . . . Parts Stripped . | . . . . . . . . . . . . . . . . . . Power Chain Reactions . | . . . . . . . . . . . . . . . . . . Missiles Intercepted . | . . . . . . . . . . . . . . . . . . Alert | -11 -10 -10 -10 -9 -8 -7 -7 -7 -7 -6 -6 -6 -5 -5 -5 -5 -5 ------- Run | Jun Mat Min Exi Min Mat Fac Low Low Dat Pro Fac DSF Fac Ext Cet Arc Hub Peak Influence 868 | . 15 5 . . 30 102 . . . . 29 35 150 868 485 177 350 Initial 485 | . . 5 . . . 13 . . . . 29 20 18 73 485 142 58 Average 308 | . . 5 . . 4 64 . . . . 29 30 42 482 436 147 141 Maximum Alert Level 3 | . . . . . . . . . . . . . . 3 2 . 1 Low Security (%) 47 | 100 100 100 . 100 100 100 . . . . 100 100 100 10 . 100 76 Level 1 10 | . . . . . . . . . . . . . . 15 32 . 23 Level 2 33 | . . . . . . . . . . . . . . 56 68 . . Level 3 9 | . . . . . . . . . . . . . . 16 . . . Level 4 . | . . . . . . . . . . . . . . . . . . Level 5 . | . . . . . . . . . . . . . . . . . . High Security . | . . . . . . . . . . . . . . . . . . Max Security . | . . . . . . . . . . . . . . . . . . Squads Dispatched 13 | . . . . . 3 . . . . . . 1 2 4 1 . 2 Investigation 6 | . . . . . 1 . . . . . . . 1 2 1 . 1 Extermination . | . . . . . . . . . . . . . . . . . . Reinforcement 6 | . . . . . 2 . . . . . . 1 1 1 . . 1 Assault 1 | . . . . . . . . . . . . . . 1 . . . Garrison . | . . . . . . . . . . . . . . . . . . Intercept . | . . . . . . . . . . . . . . . . . . Searches Triggered . | . . . . . . . . . . . . . . . . . . Data Miner Redirects 2 | . . . . . . . . . . . . . 1 . . . 1 Construction Impeded . | . . . . . . . . . . . . . . . . . . Haulers Reinforced 1 | . . . . . . . . . . . . . 1 . . . . Active Scanning Responses . | . . . . . . . . . . . . . . . . . . Cargo Convoy Interrupts . | . . . . . . . . . . . . . . . . . . Stealth | -11 -10 -10 -10 -9 -8 -7 -7 -7 -7 -6 -6 -6 -5 -5 -5 -5 -5 --------- Run | Jun Mat Min Exi Min Mat Fac Low Low Dat Pro Fac DSF Fac Ext Cet Arc Hub Distress Signals 3 | . . . . . . . . . . . . . . 1 1 . 1 Communications Jammed . | . . . . . . . . . . . . . . . . . . Distress Signals . | . . . . . . . . . . . . . . . . . . Times Spotted 114 | . 1 5 . . 12 3 2 4 . 9 . 4 5 34 11 4 20 Peak Tracking Total 21 | . 1 5 . . 10 4 2 4 . 6 . 4 3 5 10 4 21 Tactical Retreats 7 | . 1 . . . . . . . . . . . 2 3 . . 1 Traps | -11 -10 -10 -10 -9 -8 -7 -7 -7 -7 -6 -6 -6 -5 -5 -5 -5 -5 ------- Run | Jun Mat Min Exi Min Mat Fac Low Low Dat Pro Fac DSF Fac Ext Cet Arc Hub Traps Triggered 3 | . . . . . 1 . . . . . . . . 2 . . . Indirectly . | . . . . . . . . . . . . . . . . . . Trap Hack Attempts . | . . . . . . . . . . . . . . . . . . Triggered . | . . . . . . . . . . . . . . . . . . Disarmed . | . . . . . . . . . . . . . . . . . . Reprogrammed . | . . . . . . . . . . . . . . . . . . Reused . | . . . . . . . . . . . . . . . . . . Traps Extracted . | . . . . . . . . . . . . . . . . . . Installed . | . . . . . . . . . . . . . . . . . . Triggered 2 | . . . . . . . . 1 . 1 . . . . . . . Machines | -11 -10 -10 -10 -9 -8 -7 -7 -7 -7 -6 -6 -6 -5 -5 -5 -5 -5 ---------- Run | Jun Mat Min Exi Min Mat Fac Low Low Dat Pro Fac DSF Fac Ext Cet Arc Hub Machines Disabled 5 | . . . . . . . . . . . . . . 1 1 . 3 Max in Single Turn 2 | . . . . . . . . . . . . . . 1 . . 2 Garrison Access 1 | . . . . . . . . . . . . . . . . . 1 Network Hub 1 | . . . . . . . . . . . . . . . . . 1 Machines Repaired . | . . . . . . . . . . . . . . . . . . Machines Sabotaged . | . . . . . . . . . . . . . . . . . . Overloaded Fab Kills . | . . . . . . . . . . . . . . . . . . Hacking | -11 -10 -10 -10 -9 -8 -7 -7 -7 -7 -6 -6 -6 -5 -5 -5 -5 -5 --------- Run | Jun Mat Min Exi Min Mat Fac Low Low Dat Pro Fac DSF Fac Ext Cet Arc Hub Machines Accessed 20 | . 1 . 1 . 1 1 . . 3 . 1 . 4 2 1 . 5 Terminals 14 | . 1 . . . 1 1 . . . . 1 . 3 2 1 . 4 Fabricators . | . . . . . . . . . . . . . . . . . . Repair Stations 1 | . . . . . . . . . . . . . 1 . . . . Recycling Units . | . . . . . . . . . . . . . . . . . . Scanalyzers . | . . . . . . . . . . . . . . . . . . Garrison Access 1 | . . . . . . . . . . . . . . . . . 1 Total Hacks 55 | . 1 . 1 . 3 2 . . 20 . 1 . 5 5 4 . 13 Successful 30 | . . . 1 . . 1 . . 20 . 1 . 1 1 . . 5 Failed 25 | . 1 . . . 3 1 . . . . . . 4 4 4 . 8 Catastrophic 7 | . 1 . . . . . . . . . . . 2 1 1 . 2 Database Lockouts . | . . . . . . . . . . . . . . . . . . Manual 10 | . 1 . . . 3 . . . . . . . . . 1 . 5 Terminals 32 | . 1 . . . 3 2 . . . . 1 . 4 5 4 . 12 Fabricators . | . . . . . . . . . . . . . . . . . . Repair Stations 1 | . . . . . . . . . . . . . 1 . . . . Recycling Units . | . . . . . . . . . . . . . . . . . . Scanalyzers . | . . . . . . . . . . . . . . . . . . Garrison Access 1 | . . . . . . . . . . . . . . . . . 1 Terminal Hacks 29 | . . . 1 . . 1 . . 20 . 1 . 1 1 . . 4 Record 3 | . . . 1 . . . . . 2 . . . . . . . . Part Schematic 9 | . . . . . . . . . 9 . . . . . . . . Robot Schematic 6 | . . . . . . . . . 6 . . . . . . . . Prototype ID Bank 3 | . . . . . . . . . 3 . . . . . . . . Open Door 1 | . . . . . . . . . . . . . 1 . . . . Open DSF 1 | . . . . . . . . . . . 1 . . . . . . Emergency Access Points 1 | . . . . . . . . . . . . . . . . . 1 Recall Reinforcements 1 | . . . . . . . . . . . . . . 1 . . . Zone Layout 4 | . . . . . . 1 . . . . . . . . . . 3 Fabricator Hacks . | . . . . . . . . . . . . . . . . . . Repair Station Hacks . | . . . . . . . . . . . . . . . . . . Recycling Unit Hacks . | . . . . . . . . . . . . . . . . . . Scanalyzer . | . . . . . . . . . . . . . . . . . . Garrison Access Hacks 1 | . . . . . . . . . . . . . . . . . 1 Seal Access 1 | . . . . . . . . . . . . . . . . . 1 Unauthorized Hacks . | . . . . . . . . . . . . . . . . . . Terminals . | . . . . . . . . . . . . . . . . . . Fabricators . | . . . . . . . . . . . . . . . . . . Repair Stations . | . . . . . . . . . . . . . . . . . . Recycling Units . | . . . . . . . . . . . . . . . . . . Scanalyzers . | . . . . . . . . . . . . . . . . . . Garrison Access . | . . . . . . . . . . . . . . . . . . Data Cores Recovered . | . . . . . . . . . . . . . . . . . . Used . | . . . . . . . . . . . . . . . . . . Hacking Detections 14 | . 1 . . . 1 1 . . . . . . 4 2 1 . 4 Full Trace Events 5 | . . . . . 1 . . . . . . . 1 1 1 . 1 Feedback Events . | . . . . . . . . . . . . . . . . . . Feedback Blocked . | . . . . . . . . . . . . . . . . . . Robot Schematics Acquired 6 | . . . . . . . . . 6 . . . . . . . . Robots Built . | . . . . . . . . . . . . . . . . . . Authchips . | . . . . . . . . . . . . . . . . . . Time . | . . . . . . . . . . . . . . . . . . Total Robot Build Rating . | . . . . . . . . . . . . . . . . . . Part Schematics Acquired 9 | . . . . . . . . . 9 . . . . . . . . Parts Built . | . . . . . . . . . . . . . . . . . . Authchips . | . . . . . . . . . . . . . . . . . . Time . | . . . . . . . . . . . . . . . . . . Total Part Build Rating . | . . . . . . . . . . . . . . . . . . Parts Repaired . | . . . . . . . . . . . . . . . . . . Time . | . . . . . . . . . . . . . . . . . . Parts Recycled . | . . . . . . . . . . . . . . . . . . Recycled Matter . | . . . . . . . . . . . . . . . . . . Retrieved Matter . | . . . . . . . . . . . . . . . . . . Retrieved Components . | . . . . . . . . . . . . . . . . . . Parts Scanalyzed . | . . . . . . . . . . . . . . . . . . Part Schematics Acquired . | . . . . . . . . . . . . . . . . . . Parts Damaged . | . . . . . . . . . . . . . . . . . . Bothacking | -11 -10 -10 -10 -9 -8 -7 -7 -7 -7 -6 -6 -6 -5 -5 -5 -5 -5 ------------ Run | Jun Mat Min Exi Min Mat Fac Low Low Dat Pro Fac DSF Fac Ext Cet Arc Hub Used RIF Installer . | . . . . . . . . . . . . . . . . . . Robots Hacked . | . . . . . . . . . . . . . . . . . . Non-combat . | . . . . . . . . . . . . . . . . . . Combat . | . . . . . . . . . . . . . . . . . . Robot Hacks Applied . | . . . . . . . . . . . . . . . . . . Relay Couplers Released . | . . . . . . . . . . . . . . . . . . Fabnet Peak Effective % . | . . . . . . . . . . . . . . . . . . Robots Rewired 12 | . . . . . . . . . . . . . . 12 . . . Allies Hacked . | . . . . . . . . . . . . . . . . . . Hacks Repelled . | . . . . . . . . . . . . . . . . . . Allies | -11 -10 -10 -10 -9 -8 -7 -7 -7 -7 -6 -6 -6 -5 -5 -5 -5 -5 -------- Run | Jun Mat Min Exi Min Mat Fac Low Low Dat Pro Fac DSF Fac Ext Cet Arc Hub Total Allies 32 | . . . . 3 . . . . . 1 . . . 28 . . . Largest Group 17 | . . . . 3 . . . . . 1 . . . 17 8 . . Highest-Rated Group 630 | . . . . 40 . . . . . 96 . . . 630 328 . . Highest-Rated Ally 159 | . . . . 16 . . . . . 96 . . . 159 159 . . Total Orders . | . . . . . . . . . . . . . . . . . . Ally Attacks 198 | . . . . . . . . . . 12 . . . 175 11 . . Total Damage 3854 | . . . . . . . . . . 276 . . . 3380 198 . . Kills 23 | . . . . . . . . . . 2 . . . 21 . . . Allies Corrupted . | . . . . . . . . . . . . . . . . . . Allies Melted . | . . . . . . . . . . . . . . . . . . Intel | -11 -10 -10 -10 -9 -8 -7 -7 -7 -7 -6 -6 -6 -5 -5 -5 -5 -5 ------- Run | Jun Mat Min Exi Min Mat Fac Low Low Dat Pro Fac DSF Fac Ext Cet Arc Hub Robot Analysis Total . | . . . . . . . . . . . . . . . . . . Derelict Logs Recovered 3 | . . . . . . . 1 1 . 1 . . . . . . . Drone Launches . | . . . . . . . . . . . . . . . . . . Drone Recoveries . | . . . . . . . . . . . . . . . . . . Exploration | -11 -10 -10 -10 -9 -8 -7 -7 -7 -7 -6 -6 -6 -5 -5 -5 -5 -5 ------------- Run | Jun Mat Min Exi Min Mat Fac Low Low Dat Pro Fac DSF Fac Ext Cet Arc Hub Turns Passed 2355 | 13 34 27 64 67 70 119 72 89 23 114 4 13 168 1097 50 237 94 Spaces Moved 3315 | 26 67 46 127 131 125 233 206 189 78 319 13 30 383 1043 102 42 155 Core 939 | 26 67 46 127 131 125 196 . . . . . . . 37 . 29 155 Treads . | . . . . . . . . . . . . . . . . . . Legs . | . . . . . . . . . . . . . . . . . . Wheels . | . . . . . . . . . . . . . . . . . . Hover 4 | . . . . . . . . . . . . . . . . 4 . Flight 2372 | . . . . . . 37 206 189 78 319 13 30 383 1006 102 9 . Fastest Speed 23 | 50 50 50 50 50 50 35 35 29 29 29 32 26 23 23 29 35 50 Average Speed 35 | 50 50 50 50 50 50 47 35 33 29 30 32 30 27 27 33 47 52 Slowest Speed 100 | 50 50 50 50 50 50 50 35 35 29 32 32 32 32 100 35 60 100 Overloaded Moves . | . . . . . . . . . . . . . . . . . . Propulsion Burnouts . | . . . . . . . . . . . . . . . . . . Robots Hopped 13 | . . . . . . . 1 . . 1 . 1 4 4 2 . . Cave-ins Triggered . | . . . . . . . . . . . . . . . . . . Exploration Rate (%) 34 | 3 21 20 49 38 19 10 44 34 68 47 1 40 10 83 49 66 26 Regions Visited 17 Branch Regions 11 Pre-discovered Areas 3 | . . . 1 . . . . . 1 1 . . . . . . . Known Exits Taken 10 | . . . . . . 1 1 1 1 1 1 . 1 1 1 1 . Unknown Exits Taken 6 | 1 1 1 1 1 1 . . . . . . . . . . . . Scrap Searched 4 | . . . . 1 . . . . . 3 . . . . . . . Spaces Dug 60 | . . . . . . . . 13 . 10 . . 2 35 . . . Terrain Destroyed 288 | . . . . . . . . 13 . 32 . . 2 69 . . 172 Melee 6 | . . . . . . . . 3 . . . . 2 1 . . . Projectile . | . . . . . . . . . . . . . . . . . . AOE 282 | . . . . . . . . 10 . 32 . . . 68 . . 172 Terrain Rammed . | . . . . . . . . . . . . . . . . . . Walls Destroyed . | . . . . . . . . . . . . . . . . . . Machines Disabled . | . . . . . . . . . . . . . . . . . . Actions | -11 -10 -10 -10 -9 -8 -7 -7 -7 -7 -6 -6 -6 -5 -5 -5 -5 -5 --------- Run | Jun Mat Min Exi Min Mat Fac Low Low Dat Pro Fac DSF Fac Ext Cet Arc Hub Total 4348 | 25 66 49 126 131 131 238 204 208 77 330 12 31 415 1771 114 257 163 Wait 702 | . . . . . . . . 9 . 3 . . 14 465 7 204 . Move 3273 | 25 66 45 126 130 124 232 203 188 77 316 12 27 375 1034 97 41 155 Hop 12 | . . . . . . . 1 . . 1 . 1 3 4 2 . . Pick Up 17 | . . . . 1 2 2 . . . 1 . 1 2 7 . 1 . Fast Attach 23 | . . . . . . 3 . 2 . 3 . 2 1 10 . 2 . Attach 23 | . . . . . . 1 . 3 . 1 . . 2 10 1 2 3 Detach 19 | . . . . . . . . 2 . 1 . . . 10 2 3 1 Swap 3 | . . . . . . . . . . . . . . 1 2 . . Drop 14 | . . . . . . . . . . . . . 1 9 2 2 . Fire 15 | . . . . . . . . 1 . 4 . . . 8 . . 2 Melee 74 | . . . . . . . . 3 . . . . 17 49 1 2 2 Ram 9 | . . 4 . . 5 . . . . . . . . . . . . Kick . | . . . . . . . . . . . . . . . . . . Crush . | . . . . . . . . . . . . . . . . . . Escape Stasis 18 | . . . . . . . . . . . . . . 18 . . . Rewire 146 | . . . . . . . . . . . . . . 146 . . . Trap . | . . . . . . . . . . . . . . . . . . Miscellaneous . | . . . . . . . . . . . . . . . . . . Route ------- -11/Junkyard -10/Materials -10/Mines -10/Exiles -9/Mines -8/Materials -7/Factory -7/Lower Caves -7/Lower Caves -7/Data Miner -6/Proximity Caves -6/Factory -6/DSF -5/Factory (discovered 2 exits: *Fac / *Ext) -5/Extension (discovered 2 exits: *Fac / *Cet) -5/Cetus -5/Archives -5/Hub_04(d) (discovered 1 exit: *Fac) History --------- Turn | Location | Event 3 | -11/Junkyard | Discovered new exit (range 16) 14 | -11/Junkyard | Entered Materials 40 | -10/Materials | Discovered new exit (range 15) 48 | -10/Materials | Entered Mines 73 | -10/Mines | Deemed a non-threat by the Exiles lab entrance 73 | -10/Mines | Discovered new exit (range 5) 75 | -10/Mines | Entered Exiles 87 | -10/Exiles | Met 8R-AWN 97 | -10/Exiles | Met EX-HEX 116 | -10/Exiles | Met EX-DEC 119 | -10/Exiles | Learned location of Zion (-6) 133 | -10/Exiles | Discovered new exit (range 14) 139 | -10/Exiles | Entered Mines 143 | -9/Mines | Met a Derelict bent on vengeance 158 | -9/Mines | Assisted by bots powering up and referring to "LRC-V3" 203 | -9/Mines | Discovered new exit (range 5) 206 | -9/Mines | Entered Materials 206 | -8/Materials | Evolved 4 slots: Propulsion x2, Utility x2 271 | -8/Materials | Discovered new exit (range 10) 276 | -8/Materials | Entered Factory 276 | -7/Factory | Evolved 2 slots: Propulsion x1, Utility x1 306 | -7/Factory | Build established: Mutant 371 | -7/Factory | Discovered new exit (range 16) 394 | -7/Factory | Identified exit to Lower Caves 395 | -7/Factory | Entered Lower Caves 464 | -7/Lower Caves | Discovered new exit (range 4) 465 | -7/Lower Caves | Identified exit to Lower Caves 466 | -7/Lower Caves | Learned Factory terminal intel 467 | -7/Lower Caves | Entered another Lower Caves area 476 | -7/Lower Caves | Identified exit to Data Miner 519 | -7/Lower Caves | Encountered a Warlord checkpoint 556 | -7/Lower Caves | Entered Data Miner 556 | -7/Data Miner | Discovered new exit (range 7) 562 | -7/Data Miner | Met Data Miner 568 | -7/Data Miner | Learned location of Section 7 (-2) 568 | -7/Data Miner | Acquired the access code to Warlord's prototype stash 572 | -7/Data Miner | Received God Mode back door access code from Data Miner 578 | -7/Data Miner | Identified exit to Proximity Caves 579 | -7/Data Miner | Entered Proximity Caves 591 | -6/Proximity Caves | Escorted by Enhanced Grunt 656 | -6/Proximity Caves | Spotted B-75 Beast 658 | -6/Proximity Caves | Core integrity fell below 50% 663 | -6/Proximity Caves | Learned location of Extension (-5) 691 | -6/Proximity Caves | Discovered new exit (range 10) 692 | -6/Proximity Caves | Attracted the attention of an 0b10 checkpoint 693 | -6/Proximity Caves | Identified exit to Factory 693 | -6/Proximity Caves | Entered Factory 693 | -6/Factory | Evolved 2 slots: Propulsion x1, Utility x1 694 | -6/Factory | Loaded intel: 26 terminal locations 697 | -6/Factory | Identified exit to DSF 697 | -6/Factory | Entered DSF 702 | -6/DSF | Discovered new exit (range 14) 710 | -6/DSF | Identified exit to Factory 710 | -6/DSF | Entered Factory 710 | -5/Factory | Evolved 2 slots: Propulsion x1, Utility x1 713 | -5/Factory | Discovered new exit (range 13) 725 | -5/Factory | Identified exit to Factory 774 | -5/Factory | Incoming investigation squad redirected 877 | -5/Factory | Discovered new exit (range 9) 878 | -5/Factory | Identified exit to Extension 878 | -5/Factory | Entered Extension 885 | -5/Extension | Rescued a captive Derelict 885 | -5/Extension | Rescued a captive Derelict 910 | -5/Extension | Rescued a captive Derelict 911 | -5/Extension | Rescued a captive Derelict 921 | -5/Extension | Rescued a captive Derelict 928 | -5/Extension | Rescued a captive Derelict 1079 | -5/Extension | Rescued a captive Derelict 1081 | -5/Extension | Rescued a captive Derelict 1106 | -5/Extension | Rescued a captive Derelict 1107 | -5/Extension | Rescued a captive Derelict 1123 | -5/Extension | Rescued a captive Derelict 1178 | -5/Extension | First assault squad dispatched 1470 | -5/Extension | Build established: Commander-Sprinter 1566 | -5/Extension | Spotted B-75 Beast 1580 | -5/Extension | Allies destroyed B-75 Beast 1585 | -5/Extension | Spotted B-75 Beast 1603 | -5/Extension | Allies destroyed B-75 Beast 1616 | -5/Extension | Rescued A7 1644 | -5/Extension | Rescued a captive Derelict 1645 | -5/Extension | Rescued a captive Derelict 1646 | -5/Extension | Rescued a captive Derelict 1650 | -5/Extension | Rescued a captive Derelict 1697 | -5/Extension | Lost 4 parts (3n1u) 1925 | -5/Extension | Discovered exit to Factory (range 10) 1925 | -5/Extension | Discovered new exit (range 6) 1928 | -5/Extension | Identified exit to Cetus 1975 | -5/Extension | Entered Cetus 1975 | -5/Cetus | Accompanied by 8 allies (A7) 1980 | -5/Cetus | Acquired a Cetus Manufacturing Module code from A7 1990 | -5/Cetus | Spotted Cetus Guard 1990 | -5/Cetus | Spotted Cetus Guard 1991 | -5/Cetus | Spotted Cetus Guard 1993 | -5/Cetus | Spotted Cetus Guard 2004 | -5/Cetus | Started Cetus Manufacturing Module 2014 | -5/Cetus | Cetus Manufacturing Module disabled 2019 | -5/Cetus | Discovered new exit (range 16) 2024 | -5/Cetus | Identified exit to Archives 2025 | -5/Cetus | Entered Archives 2254 | -5/Archives | Core integrity fell below 50% 2255 | -5/Archives | Discovered new exit (range 16) 2262 | -5/Archives | Identified exit to Hub_04(d) 2262 | -5/Archives | Entered Hub_04(d) 2285 | -5/Hub_04(d) | Lost 4 parts (3n1u) 2315 | -5/Hub_04(d) | Spotted B-75 Beast 2334 | -5/Hub_04(d) | Network Hub disabled 2345 | -5/Hub_04(d) | Incoming investigation squad redirected 2350 | -5/Hub_04(d) | Spotted Lightning 2352 | -5/Hub_04(d) | Discovered exit to Factory (range 12) 2352 | -5/Hub_04(d) | Spotted Lightning 2353 | -5/Hub_04(d) | Spotted Lightning 2353 | -5/Hub_04(d) | Spotted Lightning 2354 | -5/Hub_04(d) | Spotted Lightning 2354 | -5/Hub_04(d) | Spotted Lightning 2355 | -5/Hub_04(d) | Spotted Lightning 2356 | -5/Hub_04(d) | Core integrity fell below 20% 2356 | -5/Hub_04(d) | Destroyed by C-35 Carver with Carbide Saw Last Messages --------------- 02334_ Archive Unit disabled. 02334_ Penetrated by Slug. 02334_ Hvy. Missile Launcher destroyed. 02337_ Penetrated by Slug. 02345_ ALERT: Higher priority target reported, redirecting investigation. 02346_ ALERT: Suspicious intruders detected, dispatching Cutter reinforcements to area. 02346_ Slug penetrates Control Node. 02346_ Control Node disabled. 02346_ Slug penetrates Control Node. 02352_ EXIT=FOUND: FACTORY 02353_ EMDS Slug penetrates K-01 Serf. 02354_ Slug penetrates K-01 Serf. 02354_ K-01 Serf destroyed. 02355_ Imp. Signal Interpreter severed. 02355_ EMDS Slug penetrates Control Node. 02355_ Control Node disabled. 02355_ Penetrated by EMDS Slug. 02356_ Penetrated by Slug. 02356_ Knocked back. Map ----- +----------------------------------------------------+ | ?????????????????????????????????????????????????? | | ?????????????????????????????????????????????????? | | ?????????????????????????????????????????????????? | | ?????????????????????????????????????????????????? | | ?????????????????????????????????????????????????? | | ?????????????????????????????????????????????????? | | ?????????????????????????????????????????????????? | | ?????????????????????????????????????????????????? | | ?????????????????????????????????????????????????? | | ?????????????????????????????????????????????????? | | ???????????????????????????? ???????????????????? | | ???????????????????????????# ???????????????????? | | ???????????????????????????# #??????????????????? | | ?????????????????????"T????# ##?????????????????? | | ?????????????????????"""???# h ?????????????????? | | ?????????????????????? ???+kih#?????????????????? | | ??????????????????????h ???# #?????????????????? | | ??????????????????????#h??## #??????????? ?????? | | ?????????????????????## ### #######+### ??????? | | ?????????????????????# +???????? | | ?????????????????????# ^ ?????????? | | ?????????????????????# ""G"" #??????????? | | ???????????????????### " "% #??????????? | | ???????????????????# "" ! ##?????????? | | ???????????????????# RH c *%= ;#?????????? | | ???????????????????# @c%cc k #??????????? | | ???????????????????########;# #??????????? | | ???????????????????????????## #??????????? | | ????????????????????????????# +??????????? | | ????????????????????????????# ######+##??????????? | | ????????????????????????????# ## ! #??????????? | | ????????????????????????????# ## #??????????? | | ????????????????????????????# ##]! #??????????" | | ????????????????????????????# ##]! #?????????? | | ?????????## """ #???# """ # ##] ########+## | | ????????? + #???# #/#####+### | | ????????? # """ #???# """ # # | | ????????? # #???# # """ "" # | | ????????? ##/######## """ # # ####### | | ????????? + + """ """ # #???# # | | ????????? ## % """ # + #####""" | | ?????????" """ ## # """ """ # " | | ????????? ## """ # # #### | | ????????? ## # # #??# | | ?????????" """ #######+###/######## #??# | | ????????? #### | | ????????? ## " | | ????????? ###" | | ????????? ! " "##########+#######?#" | | ????????? ""T"" T#????# T #####""""" | +----------------------------------------------------+ Best States ------------- Heat Dissipation 40 Energy Generation 17 Energy Capacity 300 Matter Stores 300 Matter Capacity 300 Sight Range 16 Robot Scan Range 15 Terrain Scan Density 135 Armor Coverage 300 Utility Shielding 66 Evasion (%) 73 Melee Accuracy 6 Offensive Hacking 12 Authchip Count 1 Item Schematics ----------------- Combat Drone Bay | -7/Data Miner | Free Biomechanical Wings | -7/Data Miner | Free Exp. Targeting Computer | -7/Data Miner | Free Lgt. Regenerative Plating | -7/Data Miner | Free Imp. Heavy Machine Gun | -7/Data Miner | Free Linear Gravjet | -7/Data Miner | Free Imp. Coolant Injector | -7/Data Miner | Free Tesla Rifle | -7/Data Miner | Free Imp. Transmission Jammer | -7/Data Miner | Free Robot Schematics ------------------ M-28 Smith | -7/Data Miner | Free S-27 Virus | -7/Data Miner | Free L-41 Fighter | -7/Data Miner | Free G-47 Trooper | -7/Data Miner | Free B-48 Gladiator | -7/Data Miner | Free R-10 Processor | -7/Data Miner | Free Fabricated ------------ Nothing Alien Tech Used ----------------- None Achievements -------------- None Challenges ------------ None Game ------ Seed ParticleReinforcedComputer Manual? 0 Play Time 00:34:15 Cumulative 250.6 hours Start 2023.05.29 @ 17:57:42 End 2023.05.29 @ 18:31:10 Sessions 1 Manual Loads 0 Difficulty Rogue Special Mode None Game No. 747 Rogue 747 Adventurer 0 Explorer 0 Win Type - Total 12 Types 8/0/2/2/0/0/0/0/0 Lore% 87 Gallery% 84 Achievement% 75 Wizard Run 0 Options --------- ASCII 0 Keyboard 0 Movement Mouse Keybinds 0 Fullscreen 1 Font 16/SmallcapsGlow Map View 75x55 Tactical HUD 1 Map Filters NONE Filters NONE Steam 1 RUN: 38d8c8fd-bd3f-4b63-b20b-d934ed19c114